bitfinex/quotes_BTCUSD_20240715
["timestamp","ask_amount","ask_price","bid_price","bid_amount"]
[1721055475101,0.00834,63256.0,63255.0,1.7450973]
[1721055475361,0.00834,63256.0,63255.0,1.6450973]
[1721055476059,0.00834,63256.0,63255.0,1.9358973]
[1721055477076,0.00834,63256.0,63255.0,1.7558973]
[1721055477287,0.00834,63256.0,63255.0,1.9358973]
[1721055478029,0.00834,63256.0,63255.0,2.1920773]
[1721055478281,0.00834,63256.0,63255.0,1.9358973]
[1721055478696,0.00834,63256.0,63255.0,2.1492773]
[1721055478940,0.00834,63256.0,63255.0,2.3292773]
[1721055479585,0.00834,63256.0,63255.0,2.1492773]
[1721055479782,0.00834,63256.0,63255.0,2.3292773]
[1721055481511,0.00834,63256.0,63255.0,1.6450973]
[1721055482534,0.00734,63256.0,63255.0,1.6450973]
[1721055482944,0.00734,63256.0,63255.0,1.7050973]
[1721055483521,0.00734,63256.0,63255.0,1.8758973]
[1721055483634,0.00734,63256.0,63255.0,1.9358973]
[1721055484396,0.00734,63256.0,63255.0,1.8758973]
[1721055484739,0.14674,63256.0,63255.0,1.8758973]
[1721055484965,0.00684,63256.0,63255.0,1.6450973]
[1721055487243,0.00684,63256.0,63255.0,2.81617521]
[1721055487415,4e-05,63263.0,63255.0,2.81617521]
[1721055487416,5e-07,63263.0,63262.0,0.8209873]
[1721055487619,0.0076808,63286.0,63285.0,0.6683323]
[1721055487842,0.0076808,63286.0,63285.0,1.8472223]
[1721055488126,0.0076808,63286.0,63285.0,2.86620021]
[1721055488333,0.0076808,63286.0,63285.0,2.88920021]
[1721055488680,0.0076808,63286.0,63285.0,2.70920021]
[1721055489288,0.19990928,63306.0,63305.0,0.6789523]
[1721055489488,0.19990928,63306.0,63305.0,1.34623021]
[1721055489687,0.19990928,63306.0,63305.0,1.9467723]
[1721055489894,0.19990928,63306.0,63305.0,1.4959723]
[1721055490092,0.19990928,63306.0,63305.0,1.1800423]
[1721055490948,0.19990928,63306.0,63305.0,1.4959723]
[1721055492426,0.19990928,63306.0,63305.0,0.789825]
[1721055492632,0.19990928,63306.0,63305.0,0.473895]
[1721055492982,0.33730928,63306.0,63305.0,0.491895]
[1721055493210,0.33730928,63306.0,63305.0,0.014]
[1721055493412,0.33730928,63306.0,63305.0,0.171965]
[1721055493539,0.1,63304.0,63292.0,0.0742873]
[1721055493742,0.08105238,63300.0,63299.0,0.15798]
[1721055493941,0.08105238,63300.0,63299.0,1.10586]
[1721055493942,0.08089138,63300.0,63299.0,1.10586]
[1721055494360,0.33813928,63306.0,63305.0,0.789825]
[1721055494569,0.33813928,63306.0,63305.0,1.105755]
[1721055494775,0.20073928,63306.0,63305.0,1.4959723]
[1721055494977,0.20073928,63306.0,63305.0,1.1800423]
[1721055495382,0.20073928,63306.0,63305.0,1.5559723]
[1721055495618,0.20073928,63306.0,63305.0,1.6159723]
[1721055496209,0.20073928,63306.0,63305.0,1.9319023]
[1721055496459,0.20073928,63306.0,63305.0,1.9329023]
[1721055496670,0.20073928,63306.0,63305.0,2.1704023]
[1721055496875,0.20073928,63306.0,63305.0,2.1714023]
[1721055497227,0.20073928,63306.0,63305.0,2.1694023]
[1721055497792,0.20073928,63306.0,63305.0,2.0319023]
[1721055498226,0.20073928,63306.0,63305.0,1.6159723]
[1721055498613,0.20073928,63306.0,63305.0,1.4959723]
[1721055498874,0.20073928,63306.0,63305.0,1.9319023]
[1721055500047,0.20073928,63306.0,63305.0,1.6249723]
[1721055500245,0.20073928,63306.0,63305.0,1.1890423]
[1721055501474,0.20073928,63306.0,63305.0,1.3180423]
[1721055501688,0.20073928,63306.0,63305.0,1.6339723]
[1721055502336,0.20073928,63306.0,63305.0,1.1980423]
[1721055502767,0.20073928,63306.0,63305.0,1.5139723]
[1721055502991,0.20073928,63306.0,63305.0,1.1980423]
[1721055503211,0.20073928,63306.0,63305.0,1.3180423]
[1721055503431,0.20073928,63306.0,63305.0,1.6339723]
[1721055503651,0.20073928,63306.0,63305.0,1.3180423]
[1721055503652,0.19568928,63306.0,63305.0,1.3180423]
[1721055503868,0.19568928,63306.0,63305.0,1.1980423]
[1721055504303,0.19568928,63306.0,63305.0,0.807825]
[1721055504513,0.33838928,63306.0,63305.0,0.807825]
[1721055504759,0.33838928,63306.0,63305.0,0.018]
[1721055504973,0.43838928,63306.0,63305.0,0.018]
[1721055505615,0.43838928,63306.0,63287.0,0.12]
[1721055505616,0.157973,63302.0,63293.0,0.31599]
[1721055505829,0.157983,63298.0,63293.0,0.157995]
[1721055506039,0.3,63297.0,63294.0,0.157992]
[1721055506246,0.1,63297.0,63295.0,0.157989]
[1721055506659,0.1,63297.0,63293.0,0.157993]
[1721055506915,0.2,63294.0,63289.0,0.158005]
[1721055507119,0.15799,63295.0,63288.0,0.316014]
[1721055507120,0.08105238,63291.0,63288.0,0.316014]
[1721055507328,0.0606,63290.0,63282.0,0.0742873]
[1721055507535,0.0606,63290.0,63288.0,0.158007]
[1721055507536,0.0771,63289.0,63288.0,0.158007]
[1721055507741,0.0771,63289.0,63287.0,0.158009]
[1721055507742,0.1771,63289.0,63287.0,0.158009]
[1721055507955,0.1771,63289.0,63285.0,0.158014]
[1721055508175,0.1771,63289.0,63286.0,0.158012]
[1721055508377,0.158015,63285.0,63272.0,0.0742873]
[1721055508552,0.158015,63285.0,63251.0,0.317108]
[1721055508553,0.08105238,63279.0,63278.0,0.158032]
[1721055508811,0.08105238,63279.0,63265.0,0.0742873]
[1721055508812,0.0771,63277.0,63265.0,0.0742873]
[1721055509029,0.0771,63277.0,63264.0,0.00306353]
[1721055509030,0.0771,63277.0,63276.0,0.474112]
[1721055509251,0.0771,63277.0,63268.0,0.0742873]
[1721055509252,0.0771,63277.0,63272.0,0.158047]
[1721055509482,0.0771,63277.0,63273.0,0.158045]
[1721055509651,0.0771,63277.0,63268.0,0.0742873]
[1721055509652,0.0771,63277.0,63275.0,0.158038]
[1721055509812,0.0771,63277.0,63272.0,0.316095]
[1721055510012,0.0771,63277.0,63274.0,0.316084]
[1721055510217,0.0771,63277.0,63275.0,0.158039]
[1721055510536,0.0771,63277.0,63276.0,0.158037]
[1721055510808,0.0771,63277.0,63276.0,0.474112]
[1721055510979,0.0851,63277.0,63272.0,0.317094]
[1721055511187,0.008,63277.0,63274.0,0.158042]
[1721055511402,0.008,63277.0,63276.0,1.6766243]
[1721055511599,0.01,63277.0,63276.0,2.12844221]
[1721055511961,0.01,63277.0,63276.0,2.93609221]
[1721055512158,0.68200358,63306.0,63305.0,1.105755]
[1721055512287,0.68200358,63306.0,63305.0,1.225755]
[1721055512491,0.19568928,63306.0,63305.0,1.225755]
[1721055514337,0.19568928,63306.0,63305.0,1.226755]
[1721055514784,0.13033,63320.0,63305.0,1.226755]
[1721055514785,0.157919,63324.0,63318.0,0.157932]
[1721055515411,0.96150689,63327.0,63323.0,0.157919]
[1721055515636,0.96150689,63327.0,63310.0,0.22]
[1721055515637,0.157913,63326.0,63320.0,0.157927]
[1721055515839,0.157915,63325.0,63320.0,0.157927]
[1721055516013,0.67360689,63327.0,63316.0,0.315871]
[1721055516216,0.67360689,63327.0,63314.0,0.1]
[1721055516217,0.67360689,63327.0,63326.0,0.157913]
[1721055516540,0.67360689,63327.0,63324.0,0.47375]
[1721055516714,0.67360689,63327.0,63325.0,0.157913]
[1721055516915,0.67360689,63327.0,63324.0,0.315835]
[1721055516916,0.67360689,63327.0,63324.0,0.47375]
[1721055517124,0.67360689,63327.0,63324.0,0.315835]
[1721055517502,0.1,63326.0,63325.0,0.157915]
[1721055517924,0.1,63326.0,63325.0,0.473746]
[1721055518125,0.1,63326.0,63325.0,0.466746]
[1721055518529,0.1,63326.0,63325.0,0.150915]
[1721055519299,0.107,63326.0,63325.0,0.783577]
[1721055519633,0.107,63326.0,63325.0,0.467746]
[1721055520039,0.1,63326.0,63323.0,0.30394]
[1721055520243,0.1,63326.0,63325.0,0.473746]
[1721055520648,0.67360689,63327.0,63326.0,0.789565]
[1721055522790,0.67260689,63327.0,63326.0,0.789565]
[1721055522995,0.66760689,63327.0,63326.0,0.790565]
[1721055523201,0.66760689,63327.0,63326.0,1.107391]
[1721055523487,0.66760689,63327.0,63326.0,1.106391]
[1721055524322,0.66760689,63327.0,63326.0,0.790565]
[1721055524544,0.66760689,63327.0,63326.0,0.474739]
[1721055524766,0.66760689,63327.0,63326.0,0.001]
[1721055524969,0.72240689,63327.0,63326.0,0.001]
[1721055525139,1.57363789,63327.0,63326.0,0.001]
[1721055525477,0.89990689,63327.0,63326.0,0.001]
[1721055525703,0.89990689,63327.0,63326.0,0.474739]
[1721055525916,0.89990689,63327.0,63324.0,0.157915]
[1721055526119,0.89990689,63327.0,63326.0,0.001]
[1721055526319,0.89990689,63327.0,63326.0,0.158913]
[1721055526756,0.89990689,63327.0,63326.0,0.157913]
[1721055526956,0.90073689,63327.0,63326.0,0.157913]
[1721055527159,0.90073689,63327.0,63326.0,0.158913]
[1721055527583,0.90073689,63327.0,63326.0,0.001]
[1721055528660,0.90073689,63327.0,63326.0,0.158913]
[1721055528893,0.90073689,63327.0,63326.0,0.474739]
[1721055529357,0.90073689,63327.0,63326.0,0.475739]
[1721055529743,0.90073689,63327.0,63326.0,0.474739]
[1721055530422,0.76843689,63327.0,63326.0,0.474739]
[1721055531063,0.76843689,63327.0,63326.0,0.790565]
[1721055531277,0.76843689,63327.0,63326.0,0.791565]
[1721055531278,0.66843689,63327.0,63326.0,0.791565]
[1721055531699,0.66843689,63327.0,63326.0,0.002]
[1721055532118,0.66843689,63327.0,63326.0,0.475739]
[1721055532381,0.66843689,63327.0,63326.0,0.790565]
[1721055532600,0.66843689,63327.0,63326.0,0.791565]
[1721055533035,0.66843689,63327.0,63326.0,0.790565]
[1721055533890,0.66843689,63327.0,63326.0,1.106391]
[1721055535963,0.66843689,63327.0,63326.0,1.105391]
[1721055536566,0.66843689,63327.0,63326.0,0.789565]
[1721055537399,0.66843689,63327.0,63326.0,0.480739]
[1721055537619,0.66843689,63327.0,63326.0,0.486739]
[1721055538021,0.66843689,63327.0,63326.0,0.479739]
[1721055538224,0.66843689,63327.0,63326.0,0.473739]
[1721055538741,0.66843689,63327.0,63326.0,0.789565]
[1721055540102,0.66843689,63327.0,63326.0,0.003]
[1721055540706,0.66843689,63327.0,63325.0,0.157915]
[1721055540907,0.66843689,63327.0,63326.0,0.157913]
[1721055541104,0.66843689,63327.0,63326.0,1.105391]
[1721055541308,0.6945887,63327.0,63326.0,1.107391]
[1721055541513,0.66843689,63327.0,63326.0,1.105391]
[1721055542265,0.6942675,63327.0,63326.0,1.105391]
[1721055542594,0.69426856,63327.0,63326.0,0.789565]
[1721055542775,0.69426856,63327.0,63326.0,0.001]
[1721055542912,0.72216196,63327.0,63326.0,0.001]
[1721055543119,0.72216196,63327.0,63326.0,0.158913]
[1721055543321,0.72216196,63327.0,63325.0,0.157915]
[1721055543522,0.25372507,63326.0,63316.0,0.315875]
[1721055543772,0.25372507,63326.0,63320.0,0.157926]
[1721055543773,0.0787,63324.0,63320.0,0.157926]
[1721055544007,0.0787,63324.0,63313.0,0.2]
[1721055544008,0.05372507,63323.0,63318.0,0.315861]
[1721055544131,0.05372507,63322.0,63319.0,0.315857]
[1721055544502,0.0787,63324.0,63319.0,0.315857]
[1721055544503,0.05372507,63321.0,63320.0,0.157927]
[1721055544930,0.02583167,63321.0,63320.0,0.473782]
[1721055545150,0.1,63326.0,63323.0,0.157919]
[1721055545315,0.05341738,63325.0,63323.0,0.157919]
[1721055545471,0.05341738,63324.0,63323.0,0.157919]
[1721055546106,0.05341738,63324.0,63315.0,0.315876]
[1721055546314,0.05341738,63323.0,63313.0,0.2]
[1721055546511,0.1,63326.0,63321.0,0.473775]
[1721055546512,0.05341738,63322.0,63321.0,0.473775]
[1721055546971,0.05341738,63322.0,63321.0,0.789625]
[1721055547417,0.05341738,63322.0,63321.0,0.473775]
[1721055547588,0.02577188,63322.0,63321.0,0.473775]
[1721055547792,0.1,63326.0,63323.0,0.157918]
[1721055548018,0.04700745,63325.0,63322.0,0.157922]
[1721055548222,0.04700745,63325.0,63315.0,0.31588]
[1721055548223,0.04700745,63324.0,63318.0,0.315862]
[1721055548396,0.04700745,63323.0,63320.0,0.157927]
[1721055548548,0.04700745,63322.0,63321.0,0.157924]
[1721055548749,0.04700745,63322.0,63321.0,0.473774]
[1721055548953,0.04700745,63322.0,63321.0,0.789624]
[1721055549777,0.0250166,63322.0,63321.0,1.105474]
[1721055550191,0.0250166,63322.0,63321.0,0.473774]
[1721055550542,0.04971099,63322.0,63321.0,0.473774]
[1721055550753,0.04971099,63322.0,63313.0,0.315889]
[1721055550931,0.04971099,63322.0,63310.0,0.166]
[1721055550932,0.26243799,63321.0,63310.0,0.166]
[1721055551137,0.04971099,63320.0,63316.0,0.157937]
[1721055551347,0.04971099,63319.0,63316.0,0.157937]
[1721055551464,0.212725,63321.0,63317.0,0.157933]
[1721055551465,0.04911311,63318.0,63317.0,0.157933]
[1721055552476,0.04911311,63318.0,63313.0,0.315889]
[1721055552677,0.04911311,63317.0,63314.0,0.157942]
[1721055552902,0.02441872,63316.0,63314.0,0.157942]
[1721055553106,0.02441872,63315.0,63313.0,0.157944]
[1721055553300,0.157931,63319.0,63313.0,0.157944]
[1721055553301,0.02441872,63314.0,63313.0,0.157944]
[1721055553504,0.04292903,63314.0,63313.0,0.157944]
[1721055553717,0.02441872,63314.0,63313.0,0.157944]
[1721055554162,0.01441872,63314.0,63313.0,0.157944]
[1721055554767,0.1,63317.0,63313.0,0.157944]
[1721055555352,0.1,63318.0,63313.0,0.157944]
[1721055555531,0.1,63318.0,63313.0,0.164944]
[1721055556080,0.1,63318.0,63313.0,0.164945]
[1721055556322,0.1,63318.0,63313.0,0.157945]
[1721055556525,0.1,63318.0,63313.0,0.164945]
[1721055556728,0.38813,63319.0,63313.0,0.164945]
[1721055556972,0.58813,63319.0,63312.0,0.157946]
[1721055557370,0.04716016,63317.0,63312.0,0.157946]
[1721055558139,0.157933,63318.0,63312.0,0.157946]
[1721055558140,0.4052519,63318.0,63312.0,0.157946]
[1721055558360,0.357939,63316.0,63306.0,0.1]
[1721055558512,0.15794,63315.0,63309.0,0.157954]
[1721055558709,0.2052589,63315.0,63309.0,0.157954]
[1721055559070,0.2302,63310.0,63300.0,0.381252]
[1721055559374,0.2302,63310.0,63303.0,0.157968]
[1721055559375,0.237755,63309.0,63303.0,0.157968]
[1721055559575,0.237755,63309.0,63301.0,0.157974]
[1721055559576,0.157958,63308.0,63301.0,0.157974]
[1721055559775,0.357958,63308.0,63301.0,0.157974]
[1721055559928,0.157958,63308.0,63301.0,0.157974]
[1721055560130,0.0798,63309.0,63303.0,0.157969]
[1721055560327,0.1,63309.0,63301.0,0.315945]
[1721055560531,0.1,63309.0,63298.0,0.1]
[1721055560532,0.1,63309.0,63304.0,0.157965]
[1721055560734,0.1,63309.0,63303.0,0.31594]
[1721055560735,0.1,63309.0,63305.0,0.31593]
[1721055560974,0.1,63309.0,63305.0,0.157965]
[1721055561396,0.1,63311.0,63310.0,0.157952]
[1721055561620,0.1,63314.0,63312.0,0.157947]
[1721055561821,0.0473189,63317.0,63306.0,0.315921]
[1721055562001,0.0473189,63317.0,63302.0,0.0613]
[1721055562002,0.0473189,63315.0,63307.0,0.08105238]
[1721055562138,0.0473189,63316.0,63313.0,0.157945]
[1721055562339,0.0473189,63317.0,63313.0,0.157944]
[1721055562649,0.0473189,63316.0,63313.0,0.157945]
[1721055562847,0.1473189,63316.0,63313.0,0.157945]
[1721055563059,0.1473189,63316.0,63305.0,0.315925]
[1721055563060,0.1,63316.0,63311.0,0.157948]
[1721055563254,0.1,63316.0,63304.0,0.1]
[1721055563255,0.1,63316.0,63313.0,0.157943]
[1721055563648,0.1,63316.0,63315.0,0.15794]
[1721055563818,0.09463781,63321.0,63315.0,0.15794]
[1721055563819,0.0473189,63324.0,63317.0,0.31587]
[1721055564020,0.02209542,63323.0,63321.0,0.157924]
[1721055564225,0.02209542,63324.0,63321.0,0.157924]
[1721055564434,0.82634789,63327.0,63321.0,0.157924]
[1721055564435,0.02209344,63323.0,63321.0,0.157924]
[1721055564578,0.02209344,63322.0,63321.0,0.157924]
[1721055564987,0.02209344,63322.0,63321.0,0.789624]
[1721055565655,0.02209344,63322.0,63321.0,0.473774]
[1721055567521,0.66843689,63327.0,63323.0,0.157919]
[1721055567735,0.02234064,63326.0,63323.0,0.157919]
[1721055567935,0.66843689,63327.0,63322.0,0.157921]
[1721055568134,0.0223413,63326.0,63323.0,0.15792]
[1721055568561,0.0223413,63326.0,63322.0,0.157921]
[1721055568562,0.06964216,63326.0,63322.0,0.157921]
[1721055568780,0.66843689,63327.0,63323.0,0.158919]
[1721055568781,0.06964216,63325.0,63323.0,0.158919]
[1721055569004,0.0223413,63324.0,63323.0,0.158919]
[1721055569391,0.06964216,63324.0,63323.0,0.001]
[1721055569559,0.06964216,63324.0,63320.0,0.315855]
[1721055569758,0.0223413,63323.0,63315.0,0.0618]
[1721055570480,0.0223413,63323.0,63322.0,0.473766]
[1721055570889,0.04730554,63326.0,63324.0,0.157917]
[1721055571093,0.66843689,63327.0,63326.0,0.157913]
[1721055571298,0.69091024,63327.0,63326.0,0.473739]
[1721055571452,0.69091024,63327.0,63326.0,0.622039]
[1721055572623,0.69091024,63327.0,63326.0,0.937865]
[1721055573648,0.69091024,63327.0,63326.0,1.057865]
[1721055573862,0.66843689,63327.0,63326.0,1.473691]
[1721055574063,0.66843689,63327.0,63326.0,1.573691]
[1721055574644,0.66843689,63327.0,63326.0,1.889517]
[1721055575838,0.66843689,63327.0,63326.0,1.890517]
[1721055576388,0.66843689,63327.0,63326.0,1.889517]
[1721055576671,0.66843689,63327.0,63326.0,1.903517]
[1721055577197,0.66843689,63327.0,63326.0,1.917517]
[1721055578129,0.66843689,63327.0,63326.0,1.797517]
[1721055578355,0.66843689,63327.0,63326.0,1.917517]
[1721055578555,0.66843689,63327.0,63326.0,1.903517]
[1721055579176,0.66843689,63327.0,63326.0,1.917517]
[1721055579468,0.66843689,63327.0,63326.0,1.903517]
[1721055579671,0.66843689,63327.0,63326.0,1.453691]
[1721055579870,0.66843689,63327.0,63326.0,1.587691]
[1721055580249,0.66843689,63327.0,63326.0,1.903517]
[1721055580656,0.66843689,63327.0,63326.0,2.279343]
[1721055580657,0.36863689,63327.0,63326.0,2.279343]
[1721055581051,0.36863689,63327.0,63326.0,2.219343]
[1721055581171,0.36863689,63327.0,63326.0,1.889517]
[1721055581371,0.36863689,63327.0,63326.0,1.903517]
[1721055582787,0.36863689,63327.0,63326.0,1.889517]
[1721055582993,0.36863689,63327.0,63326.0,1.917517]
[1721055583193,0.36863689,63327.0,63326.0,1.903517]
[1721055583597,0.36863689,63327.0,63326.0,2.233343]
[1721055583861,0.36863689,63327.0,63326.0,1.963517]
[1721055584064,0.36863689,63327.0,63326.0,1.903517]
[1721055584269,0.36863689,63327.0,63326.0,1.963517]
[1721055584687,0.36863689,63327.0,63326.0,1.977517]
[1721055585090,0.36863689,63327.0,63326.0,2.293343]
[1721055586248,0.36863689,63327.0,63326.0,1.963517]
[1721055586526,0.0002138,63337.0,63332.0,0.06]
[1721055586527,95.8063,63336.0,63332.0,0.06]
[1721055586751,95.8063,63336.0,63335.0,1.436152]
[1721055586962,95.8063,63336.0,63335.0,1.741014]
[1721055587161,95.8063,63336.0,63335.0,1.841014]
[1721055587364,95.8063,63336.0,63335.0,2.216795]
[1721055587567,95.8063,63336.0,63335.0,1.741014]
[1721055587977,95.8063,63336.0,63335.0,2.27891291]
[1721055588181,95.8063,63336.0,63335.0,2.17646064]
[1721055588589,95.8063,63336.0,63335.0,2.139795]
[1721055588999,95.1707,63336.0,63335.0,3.00031291]
[1721055589211,95.1707,63336.0,63335.0,2.81693569]
[1721055589618,95.1707,63336.0,63335.0,3.07575955]
[1721055589801,95.1707,63336.0,63335.0,3.08975955]
[1721055590959,95.1707,63336.0,63335.0,3.28975955]
[1721055591584,95.1707,63336.0,63335.0,2.00637964]
[1721055591786,95.1707,63336.0,63335.0,1.900714]
[1721055591987,95.1707,63336.0,63335.0,1.741014]
[1721055592387,95.1707,63336.0,63335.0,2.144795]
[1721055592854,95.1707,63336.0,63335.0,2.130795]
[1721055592975,95.1707,63336.0,63335.0,1.801014]
[1721055593175,95.1707,63336.0,63335.0,1.815014]
[1721055593386,95.1707,63336.0,63335.0,1.829014]
[1721055593583,95.1707,63336.0,63335.0,2.144795]
[1721055593787,95.1707,63336.0,63335.0,2.130795]
[1721055593982,95.1707,63336.0,63335.0,2.76539391]
[1721055594196,95.1707,63336.0,63335.0,2.78839391]
[1721055595268,95.1707,63336.0,63335.0,2.80239391]
[1721055595651,95.1707,63336.0,63335.0,2.77439391]
[1721055595853,95.1707,63336.0,63335.0,2.45861291]
[1721055596058,95.1707,63336.0,63335.0,2.47261291]
[1721055596258,95.1707,63336.0,63335.0,2.45861291]
[1721055596666,95.1707,63336.0,63335.0,1.745014]
[1721055596843,95.1707,63336.0,63335.0,2.060795]
[1721055597609,95.1657,63336.0,63335.0,2.060795]
[1721055597944,95.1657,63336.0,63335.0,2.046795]
[1721055598836,95.1657,63336.0,63335.0,2.060795]
[1721055599238,95.1657,63336.0,63335.0,2.046795]
[1721055599442,95.1657,63336.0,63335.0,2.106795]
[1721055599883,95.1657,63336.0,63335.0,2.120795]
[1721055600104,95.1657,63336.0,63335.0,2.060795]
[1721055600299,95.16494,63336.0,63335.0,1.745014]
[1721055600679,95.16494,63336.0,63335.0,2.046795]
[1721055601036,95.16494,63336.0,63335.0,2.30591291]
[1721055601733,95.16494,63336.0,63335.0,2.29191291]
[1721055602133,95.16494,63336.0,63335.0,2.30591291]
[1721055602719,95.16494,63336.0,63335.0,2.53611291]
[1721055602937,95.16494,63336.0,63335.0,2.55011291]
[1721055603677,95.16494,63336.0,63335.0,3.08301022]
[1721055603991,95.16494,63336.0,63335.0,3.49541022]
[1721055604320,95.16494,63336.0,63335.0,3.46741022]
[1721055604756,95.16494,63336.0,63335.0,2.96562922]
[1721055604969,95.16494,63336.0,63335.0,3.17962683]
[1721055605343,95.16494,63336.0,63335.0,3.03451291]
[1721055605546,95.16494,63336.0,63335.0,3.68140754]
[1721055606139,95.16494,63336.0,63335.0,3.69540754]
[1721055606342,95.16494,63336.0,63335.0,3.68140754]
[1721055606764,95.16494,63336.0,63335.0,3.69540754]
[1721055607437,95.16494,63336.0,63335.0,3.72803798]
[1721055607758,95.16494,63336.0,63335.0,3.69540754]
[1721055607965,95.16494,63336.0,63335.0,2.49714554]
[1721055608153,95.16494,63336.0,63335.0,1.99012763]
[1721055608351,95.16494,63336.0,63335.0,1.905014]
[1721055608555,95.16494,63336.0,63335.0,2.61311291]
[1721055608763,95.16494,63336.0,63335.0,3.27400791]
[1721055609103,95.16494,63336.0,63335.0,3.47240791]
[1721055609338,95.16494,63336.0,63335.0,3.46740791]
[1721055609722,95.16494,63336.0,63335.0,3.48140791]
[1721055609923,95.16494,63336.0,63335.0,3.49540791]
[1721055610274,95.16494,63336.0,63335.0,2.95162691]
[1721055610465,95.16494,63336.0,63335.0,3.25162691]
[1721055610671,95.16494,63336.0,63335.0,3.3982802]
[1721055610846,95.16494,63336.0,63335.0,3.35162691]
[1721055611051,95.16494,63336.0,63335.0,3.68140791]
[1721055612397,95.16494,63336.0,63335.0,3.69540791]
[1721055612557,95.16494,63336.0,63335.0,3.75139335]
[1721055613094,95.16494,63336.0,63335.0,3.07962691]
[1721055613316,95.16494,63336.0,63335.0,3.01092691]
[1721055613461,95.16494,63336.0,63335.0,3.19692691]
[1721055613666,95.16494,63336.0,63335.0,3.07532372]
[1721055613878,95.16494,63336.0,63335.0,3.35840791]
[1721055614116,95.16494,63336.0,63335.0,3.05662691]
[1721055614338,95.16494,63336.0,63335.0,3.08932372]
[1721055614542,95.16494,63336.0,63335.0,2.98932372]
[1721055614785,95.16494,63336.0,63335.0,3.69271653]
[1721055614962,95.16494,63336.0,63335.0,3.31271653]
[1721055615169,95.16494,63336.0,63335.0,3.40612375]
[1721055615400,95.16494,63336.0,63335.0,4.03149753]
[1721055615976,95.16494,63336.0,63335.0,4.20937963]
[1721055616149,95.16494,63336.0,63335.0,4.19537963]
[1721055616289,95.16494,63336.0,63335.0,4.25422948]
[1721055616691,95.16494,63336.0,63335.0,4.24022948]
[1721055616896,95.16494,63336.0,63335.0,4.25422948]
[1721055617106,95.16494,63336.0,63335.0,4.20937963]
[1721055617312,95.16494,63336.0,63335.0,4.31219315]
[1721055617529,95.16494,63336.0,63335.0,3.97983925]
[1721055617734,95.16494,63336.0,63335.0,3.82493922]
[1721055617933,95.16494,63336.0,63335.0,3.7049592]
[1721055618136,95.16494,63336.0,63335.0,3.70669158]
[1721055618336,95.16494,63336.0,63335.0,3.72548966]
[1721055618557,95.16494,63336.0,63335.0,4.04127066]
[1721055618760,95.16494,63336.0,63335.0,4.02247258]
[1721055619000,95.16494,63336.0,63335.0,4.1253095]
[1721055619350,95.16494,63336.0,63335.0,3.66547258]
[1721055619700,95.16494,63336.0,63335.0,4.04547258]
[1721055619874,95.16494,63336.0,63335.0,4.03147258]
[1721055620077,95.16494,63336.0,63335.0,4.04547258]
[1721055620521,95.16494,63336.0,63335.0,4.16710832]
[1721055620700,95.16494,63336.0,63335.0,4.05024826]
[1721055620900,95.16494,63336.0,63335.0,4.15311022]
[1721055621195,95.16494,63336.0,63335.0,4.03624826]
[1721055621397,95.16494,63336.0,63335.0,4.01745545]
[1721055621692,95.16494,63336.0,63335.0,4.04545545]
[1721055621874,95.16494,63336.0,63335.0,3.66545545]
[1721055622273,95.16494,63336.0,63335.0,4.14831978]
[1721055622474,95.16494,63336.0,63335.0,4.04545545]
[1721055622878,95.16494,63336.0,63335.0,4.14831978]
[1721055623090,95.16494,63336.0,63335.0,3.90845545]
[1721055623290,95.16494,63336.0,63335.0,3.92245545]
[1721055623433,95.16494,63336.0,63335.0,4.02245545]
[1721055623836,95.16494,63336.0,63335.0,3.65839067]
[1721055624045,95.16494,63336.0,63335.0,4.12552639]
[1721055624356,95.16494,63336.0,63335.0,4.04545679]
[1721055624569,95.16494,63336.0,63335.0,4.16256476]
[1721055624765,95.16494,63336.0,63335.0,4.14856476]
[1721055625052,95.16494,63336.0,63335.0,4.14947776]
[1721055625167,95.16494,63336.0,63335.0,4.13547776]
[1721055625368,95.16577,63336.0,63335.0,4.13547776]
[1721055625823,95.16577,63336.0,63335.0,4.14947776]
[1721055625994,95.16577,63336.0,63335.0,4.19625286]
[1721055626194,95.16577,63336.0,63335.0,4.20107248]
[1721055626603,95.16577,63336.0,63335.0,4.19625286]
[1721055626817,95.16577,63336.0,63335.0,4.04636979]
[1721055627196,95.16577,63336.0,63335.0,4.04636445]
[1721055627400,95.16577,63336.0,63335.0,4.03236445]
[1721055627601,95.16577,63336.0,63335.0,4.03236374]
[1721055627801,95.16577,63336.0,63335.0,4.21506291]
[1721055628055,95.16577,63336.0,63335.0,4.19624412]
[1721055628255,95.15577,63336.0,63335.0,4.21506291]
[1721055628434,95.15577,63336.0,63335.0,4.22906291]
[1721055628632,95.15577,63336.0,63335.0,4.19624412]
[1721055629266,95.15577,63336.0,63335.0,4.22906145]
[1721055629473,95.15577,63336.0,63335.0,4.22906126]
[1721055629988,95.15577,63336.0,63335.0,4.21024412]
[1721055630198,95.15577,63336.0,63335.0,4.21024068]
[1721055630401,95.15577,63336.0,63335.0,3.71508729]
[1721055630629,95.15577,63336.0,63335.0,4.215046]
[1721055631189,95.15577,63336.0,63335.0,4.229046]
[1721055631593,95.15577,63336.0,63335.0,4.215046]
[1721055632301,95.15577,63336.0,63335.0,4.19622933]
[1721055632700,95.15577,63336.0,63335.0,4.20104467]
[1721055632904,95.15577,63336.0,63335.0,4.99049667]
[1721055633127,95.15577,63336.0,63335.0,5.00449667]
[1721055633350,95.29157,63336.0,63335.0,3.39074833]
[1721055633609,95.29157,63336.0,63335.0,3.38961932]
[1721055633814,95.15577,63336.0,63335.0,3.42687926]
[1721055634029,95.15577,63336.0,63335.0,3.44087926]
[1721055634247,95.15577,63336.0,63335.0,3.8739382]
[1721055634419,95.15577,63336.0,63335.0,3.74266026]
[1721055634919,95.15577,63336.0,63335.0,3.92336026]
[1721055635221,95.15577,63336.0,63335.0,4.0406382]
[1721055635358,95.15577,63336.0,63335.0,4.0496382]
[1721055635576,95.15577,63336.0,63335.0,3.5823093]
[1721055635786,95.15577,63336.0,63335.0,4.063685]
[1721055635992,95.15577,63336.0,63335.0,4.06369026]